{"text_format":"1","workbook":"xlsx","n_sheets":9,"sheets":["Welcome","Pivot Table","New Data","Login","Loading","Learn More","Getting Started","Using TRAXI","Report"],"not_rendered":{"charts":19,"images":13,"macros":1,"external_links":0,"defined_names":4,"comments":0,"pivot_tables":1},"unopened":[],"bounds":{"document_bytes":16777216,"sheet_cells":100000,"rows_first":2000,"rows_last":500,"rows_between":2000,"halvings":0,"cell_chars":16384,"cell_head_chars":4096},"cells_cut":0,"cells_raw":0,"read":"whole","date_system":"1900"}

{"sheet":"Welcome","index":0,"n_rows":16,"n_cols":7,"rows_kept":16,"cut":false,"hidden":false,"merged":[]}
[]
[]
[]
[]
[]
[]
[]
[]
[]
[]
[]
[]
[]
[]
[]
[null,null,null,null,null,null,"Welcome to TRAXI—an Excel-based time tracking app designed to get you from point A to point B with your time management goals."]

{"sheet":"Pivot Table","index":1,"n_rows":33,"n_cols":32,"rows_kept":33,"cut":false,"hidden":false,"merged":[]}
[]
[]
["Row Labels","Sum of Length in Minutes",null,"Top 5 Uses of Waking Hours",null,null,null,null,"School",1954,null,null,null,"Work",1108,null,null,null,"Personal Interests",901,null,null,null,"Family",739,null,null,null,"Media Consumption",702]
["Sleep",2731,null,"School",1954,0.18926772568771794,0.81073227431228201,null,"Homework",816,0.41760491299897645,0.58239508700102349,null,"Work",869,0.78429602888086647,0.21570397111913353,null,"Design",416,0.46170921198668147,0.53829078801331853,null,"Time with Benson",222,0.30040595399188091,0.69959404600811914,null,"Web",428,0.6096866096866097,0.3903133903133903]
["School",1954,null,"Work",1108,0.10732274312282061,0.89267725687717936,null,"School",778,0.39815762538382804,0.60184237461617196,null,"Work (TA)",239,0.21570397111913359,0.78429602888086647,null,"Blog",260,0.28856825749167592,0.71143174250832408,null,"Time with Kenzie",195,0.26387009472259809,0.73612990527740196,null,"Movie",125,0.17806267806267806,0.82193732193732194]
["Work",1108,null,"Personal Interests",901,8.7272375048430842E-2,0.91272762495156912,null,"Studying",360,0.18423746161719551,0.81576253838280444,null,null,null,null,null,null,"Photo Editing",75,8.324084350721421E-2,0.91675915649278583,null,"Time with Andrea",110,0.14884979702300405,0.85115020297699595,null,"TV",110,0.15669515669515668,0.84330484330484334]
["Personal Interests",901,null,"Family",739,7.1580782642386667E-2,0.92841921735761335,null,null,null,null,null,null,null,null,null,null,null,"Reading",67,7.4361820199778023E-2,0.92563817980022201,null,"Time with Benson and Kenzie",103,0.13937753721244925,0.86062246278755072,null,"Social Media",39,5.5555555555555552E-2,0.94444444444444442]
["Family",739,null,"Media Consumption",702,6.7996900426191401E-2,0.93200309957380856,null,null,null,null,null,null,null,null,null,null,null,"Pictures",43,4.7724750277469481E-2,0.95227524972253053,null,"Time with Andrea, Benson, and Kenzie",79,0.10690121786197564,0.89309878213802441]
["Media Consumption",702,null,"Top 5 Activites",5404,0.5234405269275475,0.4765594730724525,null,null,null,null,null,null,null,null,null,null,null,"Projects",40,4.4395116537180909E-2,0.95560488346281913,null,"Time with Andrea and Benson",30,4.0595399188092018E-2,0.95940460081190793]
["Travel",506]
["Uncategorized",389,null,"Sleep as Percentage of Total"]
["Eating",310,null,"Sleep",2731,0.2645292522278187,0.73547074777218135]
["Getting Ready",284]
["Shopping",188,null,"Hours of Sleep Per 24 Hours"]
["Exercise",185,null,"Sleep",6.3]
["Church",132]
["Household Chores",77,null,"Travel as Percentage of Total"]
["Scripture Study",68,null,"Travel",506,4.9012010848508328E-2,0.95098798915149163]
["Time Tracking",50]
["Grand Total",10324,null,"Hours of Travel Per 24 Hours"]
[null,null,null,"Travel",1.2]
[]
[null,null,null,"Exercise as Percentage of Total"]
[null,null,null,"Exercise",185,1.7919411080976364E-2,0.98208058891902361]
[]
[null,null,null,"Minutes of Exercise Per 24 Hours"]
[null,null,null,"Exercise",26]
[]
[null,null,null,"Scripture Study as Percentage of Total"]
[null,null,null,"Scripture Study",68,6.5865943432777997E-3,0.9934134056567222]
[]
[null,null,null,"Minutes of Scripture Study Per 24 Hours"]
[null,null,null,"Scripture Study",9]

{"sheet":"New Data","index":2,"n_rows":187,"n_cols":5,"rows_kept":187,"cut":false,"hidden":false,"merged":[]}
["Activity","Category","Date and Time","Timestamp","Length in Minutes"]
["Homework","School","on October 10, 2012 at 11:14PM",{"$f":"extractdt(C2)","v":"2012-10-10T23:14:00"},162]
["Getting Ready for Bed","Getting Ready","on October 11, 2012 at 01:56AM","2012-10-11T01:56:00",4]
["Sleep","Sleep","on October 11, 2012 at 02:01AM","2012-10-11T02:01:00",182]
["Getting Ready","Getting Ready","on October 11, 2012 at 05:04AM","2012-10-11T05:04:00",31]
["Breakfast","Eating","on October 11, 2012 at 05:36AM","2012-10-11T05:36:00",10]
["Getting Ready","Getting Ready","on October 11, 2012 at 05:46AM","2012-10-11T05:46:00",5]
["Driving","Travel","on October 11, 2012 at 05:51AM","2012-10-11T05:51:00",4]
["Waiting for the Bus","Travel","on October 11, 2012 at 05:55AM","2012-10-11T05:55:00",3]
["Bus","Travel","on October 11, 2012 at 05:59AM","2012-10-11T05:59:00",4]
["Waiting for the Bus","Travel","on October 11, 2012 at 06:03AM","2012-10-11T06:03:00",4]
["Bus","Travel","on October 11, 2012 at 06:07AM","2012-10-11T06:07:00",55]
["Social Media","Media Consumption","on October 11, 2012 at 06:10AM","2012-10-11T06:10:00",5]
["Scripture Study","Scripture Study","on October 11, 2012 at 06:16AM","2012-10-11T06:16:00",21]
["Nap","Sleep","on October 11, 2012 at 06:38AM","2012-10-11T06:38:00",23]
["Walk","Exercise","on October 11, 2012 at 07:03AM","2012-10-11T07:03:00",2]
["Work","Work","on October 11, 2012 at 07:05AM","2012-10-11T07:05:00",236]
["Lunch","Eating","on October 11, 2012 at 11:02AM","2012-10-11T11:02:00",23]
["Walk","Exercise","on October 11, 2012 at 11:25AM","2012-10-11T11:25:00",43]
["Work","Work","on October 11, 2012 at 12:09PM","2012-10-11T12:09:00",217]
["Walk","Exercise","on October 11, 2012 at 03:46PM","2012-10-11T15:46:00",26]
["Bus","Travel","on October 11, 2012 at 04:12PM","2012-10-11T16:12:00",92]
["Walk","Exercise","on October 11, 2012 at 05:45PM","2012-10-11T17:45:00",10]
["Dinner","Eating","on October 11, 2012 at 05:55PM","2012-10-11T17:55:00",0]
["School","School","on October 11, 2012 at 05:55PM","2012-10-11T17:55:00",100]
["Walk","Exercise","on October 11, 2012 at 07:36PM","2012-10-11T19:36:00",11]
["Waiting for the Bus","Travel","on October 11, 2012 at 07:47PM","2012-10-11T19:47:00",5]
["Bus","Travel","on October 11, 2012 at 07:53PM","2012-10-11T19:53:00",8]
["Walking","Exercise","on October 11, 2012 at 08:02PM","2012-10-11T20:02:00",11]
["Time with Benson","Family","on October 11, 2012 at 08:13PM","2012-10-11T20:13:00",16]
["Getting Ready for Bed","Getting Ready","on October 11, 2012 at 08:30PM","2012-10-11T20:30:00",15]
["Web","Media Consumption","on October 11, 2012 at 08:45PM","2012-10-11T20:45:00",14]
["Time with Andrea and Benson","Family","on October 11, 2012 at 09:00PM","2012-10-11T21:00:00",30]
["Time with Benson","Family","on October 11, 2012 at 09:31PM",{"$f":"extractdt(C34)","v":"2012-10-11T21:31:00"},13]
["Sleep","Sleep","on October 11, 2012 at 09:44PM","2012-10-11T21:44:00",471]
["Time with Benson","Family","on October 12, 2012 at 05:35AM","2012-10-12T05:35:00",74]
["Web","Media Consumption","on October 12, 2012 at 05:40AM","2012-10-12T05:40:00",47]
["Time with Kenzie","Family","on October 12, 2012 at 06:51AM","2012-10-12T06:51:00",4]
["Time Tracking","Time Tracking","on October 12, 2012 at 06:55AM","2012-10-12T06:55:00",8]
["Time with Andrea","Family","on October 12, 2012 at 07:04AM","2012-10-12T07:04:00",36]
["Breakfast","Eating","on October 12, 2012 at 07:40AM","2012-10-12T07:40:00",7]
["Scripture Study","Scripture Study","on October 12, 2012 at 07:48AM","2012-10-12T07:48:00",25]
["Changing Flat Tire","Uncategorized","on October 12, 2012 at 08:13AM","2012-10-12T08:13:00",85]
["Driving","Travel","on October 12, 2012 at 09:39AM","2012-10-12T09:39:00",10]
["Car Repair","Uncategorized","on October 12, 2012 at 09:50AM","2012-10-12T09:50:00",69]
["Reading","Personal Interests","on October 12, 2012 at 10:00AM","2012-10-12T10:00:00",56]
["Driving","Travel","on October 12, 2012 at 11:00AM","2012-10-12T11:00:00",10]
["Time with Benson","Family","on October 12, 2012 at 11:11AM","2012-10-12T11:11:00",17]
["Lunch","Eating","on October 12, 2012 at 11:28AM","2012-10-12T11:28:00",10]
["LiveStrong","Uncategorized","on October 12, 2012 at 11:38AM","2012-10-12T11:38:00",11]
["Time with Kenzie","Family","on October 12, 2012 at 11:50AM","2012-10-12T11:50:00",69]
["Time with Benson and Kenzie","Family","on October 12, 2012 at 01:00PM","2012-10-12T13:00:00",58]
["Social Media","Media Consumption","on October 12, 2012 at 01:58PM","2012-10-12T13:58:00",14]
["Homework","School","on October 12, 2012 at 02:12PM","2012-10-12T14:12:00",180]
["Time with Kenzie","Family","on October 12, 2012 at 05:12PM","2012-10-12T17:12:00",30]
["Driving","Travel","on October 12, 2012 at 05:43PM","2012-10-12T17:43:00",12]
["Dinner","Eating","on October 12, 2012 at 05:55PM","2012-10-12T17:55:00",20]
["Shopping","Shopping","on October 12, 2012 at 06:16PM","2012-10-12T18:16:00",26]
["Driving","Travel","on October 12, 2012 at 06:42PM","2012-10-12T18:42:00",11]
["Unload","Uncategorized","on October 12, 2012 at 06:53PM","2012-10-12T18:53:00",4]
["Time Tracking","Time Tracking","on October 12, 2012 at 06:58PM","2012-10-12T18:58:00",11]
["Homework","School","on October 12, 2012 at 07:10PM","2012-10-12T19:10:00",108]
["Time with Andrea","Family","on October 12, 2012 at 08:58PM","2012-10-12T20:58:00",35]
["Movie","Media Consumption","on October 12, 2012 at 09:34PM","2012-10-12T21:34:00",125]
["Web","Media Consumption","on October 12, 2012 at 11:39PM","2012-10-12T23:39:00",25]
["Time with Benson","Family","on October 13, 2012 at 12:05AM",{"$f":"extractdt(C66)","v":"2012-10-13T00:05:00"},7]
["Sleep","Sleep","on October 13, 2012 at 12:12AM","2012-10-13T00:12:00",406]
["Time with Kenzie","Family","on October 13, 2012 at 06:58AM","2012-10-13T06:58:00",11]
["Breakfast","Eating","on October 13, 2012 at 07:10AM","2012-10-13T07:10:00",15]
["Web","Media Consumption","on October 13, 2012 at 07:26AM","2012-10-13T07:26:00",31]
["Design","Personal Interests","on October 13, 2012 at 07:58AM","2012-10-13T07:58:00",91]
["Getting Ready","Getting Ready","on October 13, 2012 at 09:29AM","2012-10-13T09:29:00",30]
["Driving","Travel","on October 13, 2012 at 09:59AM","2012-10-13T09:59:00",36]
["Shopping","Shopping","on October 13, 2012 at 10:36AM","2012-10-13T10:36:00",162]
["Driving","Travel","on October 13, 2012 at 01:19PM","2012-10-13T13:19:00",15]
["BYU Game","Uncategorized","on October 13, 2012 at 01:35PM","2012-10-13T13:35:00",210]
["Time with Benson","Family","on October 13, 2012 at 02:30PM","2012-10-13T14:30:00",60]
["Cleaning","Household Chores","on October 13, 2012 at 05:05PM","2012-10-13T17:05:00",63]
["Dinner","Eating","on October 13, 2012 at 06:08PM","2012-10-13T18:08:00",31]
["Homework","School","on October 13, 2012 at 06:40PM","2012-10-13T18:40:00",111]
["Blog","Personal Interests","on October 13, 2012 at 08:32PM","2012-10-13T20:32:00",29]
["Time with Kenzie","Family","on October 13, 2012 at 09:02PM","2012-10-13T21:02:00",34]
["Web","Media Consumption","on October 13, 2012 at 09:36PM","2012-10-13T21:36:00",53]
["Design","Personal Interests","on October 13, 2012 at 10:30PM","2012-10-13T22:30:00",53]
["Web","Media Consumption","on October 13, 2012 at 11:23PM","2012-10-13T23:23:00",29]
["Getting Ready for Bed","Getting Ready","on October 13, 2012 at 11:53PM","2012-10-13T23:53:00",5]
["Sleep","Sleep","on October 13, 2012 at 11:59PM","2012-10-13T23:59:00",409]
["Time with Kenzie","Family","on October 14, 2012 at 06:48AM","2012-10-14T06:48:00",34]
["Web","Media Consumption","on October 14, 2012 at 07:23AM","2012-10-14T07:23:00",30]
["Breakfast","Eating","on October 14, 2012 at 07:53AM","2012-10-14T07:53:00",7]
["Time Tracking","Time Tracking","on October 14, 2012 at 08:01AM","2012-10-14T08:01:00",12]
["Web","Media Consumption","on October 14, 2012 at 08:13AM","2012-10-14T08:13:00",19]
["Blog","Personal Interests","on October 14, 2012 at 08:33AM","2012-10-14T08:33:00",99]
["Time with Benson and Kenzie","Family","on October 14, 2012 at 10:12AM","2012-10-14T10:12:00",45]
["Getting Ready","Getting Ready","on October 14, 2012 at 10:57AM","2012-10-14T10:57:00",42]
["Time with Andrea","Family","on October 14, 2012 at 11:39AM","2012-10-14T11:39:00",39]
["Time with Benson","Family","on October 14, 2012 at 12:19PM","2012-10-14T12:19:00",21]
["Getting Ready","Getting Ready","on October 14, 2012 at 12:40PM",{"$f":"extractdt(C98)","v":"2012-10-14T12:40:00"},14]
["Church","Church","on October 14, 2012 at 012:55PM","2012-10-14T12:55:00",132]
["Time with Kenzie","Family","on October 14, 2012 at 03:07PM","2012-10-14T15:07:00",13]
["Nap","Sleep","on October 14, 2012 at 03:21PM","2012-10-14T15:21:00",93]
["Web","Media Consumption","on October 14, 2012 at 04:54PM","2012-10-14T16:54:00",18]
["Scripture Study","Scripture Study","on October 14, 2012 at 05:13PM","2012-10-14T17:13:00",22]
["Dinner","Eating","on October 14, 2012 at 05:36PM","2012-10-14T17:36:00",54]
["Pictures","Personal Interests","on October 14, 2012 at 06:30PM","2012-10-14T18:30:00",43]
["Projects","Personal Interests","on October 14, 2012 at 07:14PM","2012-10-14T19:14:00",40]
["Blog","Personal Interests","on October 14, 2012 at 07:55PM","2012-10-14T19:55:00",79]
["Web","Media Consumption","on October 14, 2012 at 09:15PM","2012-10-14T21:15:00",45]
["Design","Personal Interests","on October 14, 2012 at 10:00PM","2012-10-14T22:00:00",145]
["Getting Ready for Bed","Getting Ready","on October 15, 2012 at 12:25AM","2012-10-15T00:25:00",5]
["Sleep","Sleep","on October 15, 2012 at 12:30AM","2012-10-15T00:30:00",329]
["Homework","School","on October 15, 2012 at 06:00AM","2012-10-15T06:00:00",55]
["Getting Ready","Getting Ready","on October 15, 2012 at 06:55AM","2012-10-15T06:55:00",39]
["Breakfast","Eating","on October 15, 2012 at 07:35AM","2012-10-15T07:35:00",10]
["Driving","Travel","on October 15, 2012 at 07:45AM","2012-10-15T07:45:00",9]
["Walking","Exercise","on October 15, 2012 at 07:54AM","2012-10-15T07:54:00",5]
["School","School","on October 15, 2012 at 08:00AM","2012-10-15T08:00:00",174]
["Homework","School","on October 15, 2012 at 10:55AM","2012-10-15T10:55:00",24]
["Walking","Exercise","on October 15, 2012 at 11:20AM","2012-10-15T11:20:00",5]
["Lunch","Eating","on October 15, 2012 at 11:25AM","2012-10-15T11:25:00",30]
["Walking","Exercise","on October 15, 2012 at 11:55AM","2012-10-15T11:55:00",7]
["Time Tracking","Time Tracking","on October 15, 2012 at 12:03PM","2012-10-15T12:03:00",5]
["Social Media","Media Consumption","on October 15, 2012 at 12:09PM","2012-10-15T12:09:00",20]
["School","School","on October 15, 2012 at 12:29PM","2012-10-15T12:29:00",82]
["Design","Personal Interests","on October 15, 2012 at 01:52PM","2012-10-15T13:52:00",127]
["School","School","on October 15, 2012 at 04:00PM","2012-10-15T16:00:00",85]
["Driving","Travel","on October 15, 2012 at 05:25PM","2012-10-15T17:25:00",10]
["Time with Andrea, Benson, and Kenzie","Family","on October 15, 2012 at 05:35PM","2012-10-15T17:35:00",24]
["Time Tracking","Time Tracking","on October 15, 2012 at 06:00PM","2012-10-15T18:00:00",0]
["Time with Benson","Family","on October 15, 2012 at 06:00PM",{"$f":"extractdt(C130)","v":"2012-10-15T18:00:00"},14]
["Dinner","Eating","on October 15, 2012 at 06:15PM","2012-10-15T18:15:00",14]
["Work (TA)","Work","on October 15, 2012 at 06:29PM","2012-10-15T18:29:00",239]
["TV","Media Consumption","on October 15, 2012 at 10:29PM","2012-10-15T22:29:00",31]
["Getting Ready for Bed","Getting Ready","on October 15, 2012 at 11:00PM","2012-10-15T23:00:00",14]
["Sleep","Sleep","on October 15, 2012 at 11:15PM","2012-10-15T23:15:00",375]
["Getting Ready","Getting Ready","on October 16, 2012 at 05:31AM","2012-10-16T05:31:00",34]
["Driving","Travel","on October 16, 2012 at 06:06AM","2012-10-16T06:06:00",7]
["Waiting for the Bus","Travel","on October 16, 2012 at 06:13AM","2012-10-16T06:13:00",26]
["Bus","Travel","on October 16, 2012 at 06:39AM","2012-10-16T06:39:00",65]
["Studying","School","on October 16, 2012 at 06:40AM","2012-10-16T06:40:00",59]
["Walk","Exercise","on October 16, 2012 at 07:45AM","2012-10-16T07:45:00",5]
["Work","Work","on October 16, 2012 at 07:50AM","2012-10-16T07:50:00",225]
["Walk","Exercise","on October 16, 2012 at 11:35AM","2012-10-16T11:35:00",29]
["Lunch","Eating","on October 16, 2012 at 12:04PM","2012-10-16T12:04:00",30]
["Work","Work","on October 16, 2012 at 12:35PM","2012-10-16T12:35:00",191]
["Walk","Exercise","on October 16, 2012 at 03:47PM","2012-10-16T15:47:00",5]
["Riding TRAX","Travel","on October 16, 2012 at 03:52PM","2012-10-16T15:52:00",5]
["Walk","Exercise","on October 16, 2012 at 03:58PM","2012-10-16T15:58:00",10]
["Bus","Travel","on October 16, 2012 at 04:08PM","2012-10-16T16:08:00",75]
["Reading","Personal Interests","on October 16, 2012 at 04:10PM","2012-10-16T16:10:00",11]
["Nap","Sleep","on October 16, 2012 at 04:23PM","2012-10-16T16:23:00",49]
["Driving","Travel","on October 16, 2012 at 05:24PM","2012-10-16T17:24:00",11]
["Time with Andrea, Benson, and Kenzie","Family","on October 16, 2012 at 05:35PM","2012-10-16T17:35:00",10]
["Web","Media Consumption","on October 16, 2012 at 05:45PM","2012-10-16T17:45:00",14]
["Dinner","Eating","on October 16, 2012 at 06:00PM","2012-10-16T18:00:00",0]
["Studying","School","on October 16, 2012 at 06:00PM","2012-10-16T18:00:00",75]
["TV","Media Consumption","on October 16, 2012 at 07:15PM","2012-10-16T19:15:00",79]
["Studying","School","on October 16, 2012 at 08:35PM","2012-10-16T20:35:00",174]
["Web","Media Consumption","on October 16, 2012 at 11:30PM","2012-10-16T23:30:00",45]
["Studying","School","on October 17, 2012 at 12:15AM","2012-10-17T00:15:00",34]
["Getting Ready for Bed","Getting Ready","on October 17, 2012 at 12:49AM","2012-10-17T00:49:00",7]
["Sleep","Sleep","on October 17, 2012 at 12:56AM",{"$f":"extractdt(C162)","v":"2012-10-17T00:56:00"},394]
["Getting Ready","Getting Ready","on October 17, 2012 at 07:31AM","2012-10-17T07:31:00",39]
["Driving","Travel","on October 17, 2012 at 08:10AM","2012-10-17T08:10:00",9]
["School","School","on October 17, 2012 at 08:20AM","2012-10-17T08:20:00",165]
["Lunch","Eating","on October 17, 2012 at 11:05AM","2012-10-17T11:05:00",20]
["Web","Media Consumption","on October 17, 2012 at 11:25AM","2012-10-17T11:25:00",20]
["Time Tracking","Time Tracking","on October 17, 2012 at 11:45AM","2012-10-17T11:45:00",14]
["Web","Media Consumption","on October 17, 2012 at 12:00PM","2012-10-17T12:00:00",8]
["Studying","School","on October 17, 2012 at 12:08PM","2012-10-17T12:08:00",18]
["School","School","on October 17, 2012 at 12:27PM","2012-10-17T12:27:00",87]
["Web","Media Consumption","on October 17, 2012 at 01:55PM","2012-10-17T13:55:00",0]
["Homework","School","on October 17, 2012 at 01:55PM","2012-10-17T13:55:00",34]
["Walking","Exercise","on October 17, 2012 at 02:30PM","2012-10-17T14:30:00",10]
["Homework","School","on October 17, 2012 at 02:40PM","2012-10-17T14:40:00",63]
["Walking","Exercise","on October 17, 2012 at 03:43PM","2012-10-17T15:43:00",6]
["School","School","on October 17, 2012 at 03:50PM","2012-10-17T15:50:00",85]
["Driving","Travel","on October 17, 2012 at 05:15PM","2012-10-17T17:15:00",10]
["Cafe Rio","Uncategorized","on October 17, 2012 at 05:25PM","2012-10-17T17:25:00",10]
["Driving","Travel","on October 17, 2012 at 05:35PM","2012-10-17T17:35:00",10]
["Dinner","Eating","on October 17, 2012 at 05:45PM","2012-10-17T17:45:00",29]
["Time with Andrea, Benson, and Kenzie","Family","on October 17, 2012 at 06:14PM","2012-10-17T18:14:00",45]
["Photo Editing","Personal Interests","on October 17, 2012 at 07:00PM","2012-10-17T19:00:00",75]
["Web","Media Consumption","on October 17, 2012 at 08:15PM","2012-10-17T20:15:00",30]
["Household Chores","Household Chores","on October 17, 2012 at 08:45PM","2012-10-17T20:45:00",14]
["Blog","Personal Interests","on October 17, 2012 at 09:00PM","2012-10-17T21:00:00",53]
["Homework","School","on October 17, 2012 at 09:54PM","2012-10-17T21:54:00",79]

{"sheet":"Login","index":3,"n_rows":7,"n_cols":2,"rows_kept":7,"cut":false,"hidden":false,"merged":[]}
[]
[]
[]
[null,"Username"]
[]
[]
[null,"Password"]

{"sheet":"Loading","index":4,"n_rows":10,"n_cols":2,"rows_kept":10,"cut":false,"hidden":false,"merged":[]}
[]
[]
[]
[]
[]
[]
[]
[]
[]
[null,"done!"]

{"sheet":"Learn More","index":5,"n_rows":26,"n_cols":7,"rows_kept":26,"cut":false,"hidden":false,"merged":[]}
[]
[]
[]
[]
[]
[]
[]
[]
[]
[]
[]
[]
[]
[]
[]
[null,null,null,null,null,null,"Welcome to TRAXI—an Excel-based time tracking app designed to get you from point A to point B with your time management goals."]
[]
[null,null,null,null,null,null,"About TRAXI"]
[]
[null,null,null,null,null,null,"It's hard to know how to use your time more effectively without a clear understanding of how much time you are dedicating to each of your daily activities. That's where TRAXI can help. "]
[]
[null,null,null,null,null,null,"TRAXI allows you to track your time using the one item you always have on you—your cell phone. There's no need for a pen and paper, an internet connection, or even a data plan. "]
[]
[null,null,null,null,null,null,"By keeping a log of text messages sent to a designated phone number, TRAXI records your day-to-day time usage. TRAXI imports the activities you have recorded and generates a report describing your time usage for the given period. You are then able to export a PDF report that allows you to track the progress you have made towards reaching your time management goals. "]
[]
[null,null,null,null,null,null,"That's how TRAXI is akin to a taxi service. It helps you get from point A—how you are using your time right now—to point B—where you want to be. "]

{"sheet":"Getting Started","index":6,"n_rows":56,"n_cols":7,"rows_kept":56,"cut":false,"hidden":false,"merged":[]}
[]
[]
[]
[]
[]
[]
[]
[]
[]
[]
[]
[]
[]
[]
[]
[null,null,null,null,null,null,"Getting Started"]
[]
[null,null,null,null,null,null,"There are three things you'll need to get started: (1) a Google Drive account, (2) an IFTTT account, and (3) an IFTTT \"recipe\" that relays text messages to a Google Drive spreadsheet. Follow the following steps and you'll be on your way."]
[]
[null,null,null,null,null,null,"Google Drive"]
[]
[null,null,null,null,null,null,"Google Drive will be used to record your time log before it is imported into Excel."]
[]
[null,null,null,null,null,null,"If have a Gmail account, you are already set up with Google Drive. Feel free to skip ahead to the next step."]
[]
[null,null,null,null,null,null,"If you do not have a Gmail account, navigate your web browser to the Gmail login page (http://www.gmail.com). Click on the red 'Create an Account' button in the top right-hand corner. Follow the account creation steps and login to your new Gmail account."]
[]
[null,null,null,null,null,null,"Once you've logged in, click the link along the top of the browser window that says 'Drive'. That's it. Your Google Drive is ready to go."]
[]
[null,null,null,null,null,null,"If This Then That (IFTTT) Account"]
[]
[null,null,null,null,null,null,"If This Then That will relay text messages you send to a designated phone number to a Google Drive spreadsheet. But for that to happen, you'll first need to set up an IFTTT account."]
[]
[null,null,null,null,null,null,"Navigate to http://ifttt.com to begin. Once there, click on the blue 'Join IFTTT' button and follow the account creation steps. "]
[]
[null,null,null,null,null,null,"For your text messages to be relayed to Google Drive, you will need to tell IFTTT the phone number you will be sending text messages from and allow IFTTT to communicate with your Google Drive. To do this, click on the link at the top of the IFTTT homepage that says 'Channels.'"]
[]
[null,null,null,null,null,null,"Scroll down to the icon labeled 'SMS'. Enter your phone number and click the button that says 'Send PIN'. You will receive a text message with your activation PIN, which you will then need to enter into the field on the IFTTT page requesting your PIN. Once these steps are complete, the page will display an IFTTT phone number you will use as the recipient of your time tracking text messages. Take a moment now to enter that number into your cell phone."]
[]
[null,null,null,null,null,null,"Return to the main Channel page and click on the icon labeled 'Google Drive', Follow the steps to authorize IFTTT to access your Google Drive account."]
[]
[null,null,null,null,null,null,"IFTTT Recipe"]
[]
[null,null,null,null,null,null,"Next you'll need to create a \"recipe\" that relays text messages sent to the IFTTT phone number to a spreadsheet in your Google Drive."]
[]
[null,null,null,null,null,null,"Click on the link along the top of the IFTTT page that says 'Create'. Next, click on the word 'this' under 'Create a Recipe' (you can't miss it). Choose the trigger channel, in this case SMS. Select 'Send IFTTT an SMS Tagged'. Type in the tag you will include in each time tracking text message (i.e. #time) so that IFTTT knows how to process your message. Click on 'Create Trigger', and then click on the word 'that'. Select 'Google Drive' as the action channel, and then select the 'Add Row to Spreadsheet' option. Type 'Time Log' into both the 'Spreadsheet Name' and 'Drive Folder Path' fields. Delete what's listed in the 'Formatted Row' field and type in the following: {{MessageNoHashtag}} ||| on {{ReceivedAt}}. Click on 'Create Action,' type in a name for your recipe (how about TRAXI?), and then click 'Create Recipe'."]
[]
[null,null,null,null,null,null,"Whew! Your recipe is done."]
[]
[null,null,null,null,null,null,"A Few Things to Remember"]
[]
[null,null,null,null,null,null,"To record an entry in your Time Log, send a text message to the number specified by IFTTT. The body of the message should begin with the tag you selected when creating the recipe (i.e. #time) followed by a description of your activity (i.e. Yard Work)."]
[]
[null,null,null,null,null,null,"For best results, try to avoid describing the same activity in more than one way (i.e. Dinner and Eating Dinner). Be consistent with your activity descriptions."]
[]
[null,null,null,null,null,null,"It may take a little getting used to, but try to record every activity you do throughout the day. The accuracy of your time usage report depends on how regularly you track your time. If you do happen to miss an activity or two, open the Google Drive spreadsheet where your activities are being logged and add entries in the appropriate locations. Make sure the timestamp of your additional entries is in the same format as the timestamp listed beside the other entries (i.e. on October 27, 2012 at 12:45PM)."]

{"sheet":"Using TRAXI","index":7,"n_rows":18,"n_cols":7,"rows_kept":18,"cut":false,"hidden":false,"merged":[]}
[]
[]
[]
[]
[]
[]
[]
[]
[]
[]
[]
[]
[]
[]
[]
[null,null,null,null,null,null,"Message Syntax"]
[]
[null,null,null,null,null,null,"Each time tracking text message sent to the phone number identified during setup should be tagged with \"#time\" for the message to be recorded to the correct Google Drive spreadsheet. Activities that occur simultaneously should include a \"#s\" tag to tell TRAXI that activities may overlap. An additional message containing the same activity description (i.e. \"Laundry\") plus an ending tag—\"/end\"—should be sent to signal the end of simultaneous activities."]

{"sheet":"Report","index":8,"n_rows":0,"n_cols":0,"rows_kept":0,"cut":false,"hidden":false,"merged":[]}